fUSD/lending_fUSD_20260321
["ID","MTS","AMOUNT","RATE_DAILY","PERIOD"]
[408692861,1774131040560,-1500.0,0.00014968,2]
[408692862,1774131040570,-1500.0,0.00014968,2]
[408692863,1774131040579,-1500.0,0.00014968,2]
[408692864,1774131040588,-1500.0,0.00014968,2]
[408692865,1774131040598,-1500.0,0.00014968,2]
[408692866,1774131040607,-1500.0,0.00014968,2]
[408692867,1774131040616,-1500.0,0.00014968,2]
[408692868,1774131040625,-1500.0,0.00014968,2]
[408692869,1774131040635,-1500.0,0.00014968,2]
[408692870,1774131040645,-1500.0,0.00014968,2]
[408692871,1774131040655,-1500.0,0.00014968,2]
[408692872,1774131040664,-1500.0,0.00014968,2]
[408692873,1774131040674,-887.45023446,0.00014968,2]
[408692874,1774131040684,-1506.88410936,0.00014968,2]
[408692875,1774131040693,-1074.83203376,0.00014968,2]
[408692876,1774131040702,-1500.0,0.00014968,2]
[408692877,1774131040712,-1500.0,0.00014968,2]
[408692878,1774131040723,-917.18554463,0.00014968,2]
[408692879,1774131040733,-1547.28628106,0.00014968,2]
[408692880,1774131040743,-1500.0,0.00014968,2]
[408692881,1774131040753,-1500.0,0.00014968,2]
[408692882,1774131040763,-264.37,0.00014975,2]
[408692883,1774131040772,-160.0,0.00014987,2]
[408692884,1774131040782,-250.0,0.00015,2]
[408692885,1774131040791,-979.16666667,0.00015005,2]
[408692886,1774131040801,-160.0,0.00015005,2]
[408692887,1774131040810,-25605.0953499,0.00015012,2]
[408692888,1774131040819,-161.0,0.0001504,2]
[408692889,1774131040828,-2403.0,0.0001504,2]
[408692890,1774131040837,-2403.0,0.0001504,2]
[408692891,1774131040846,-2403.0,0.0001504,2]
[408692892,1774131040855,-1721.0,0.0001504,2]
[408692893,1774131040865,-22472.33124532,0.0001505,2]
[408692894,1774131040875,-222.0,0.00015068,2]
[408692895,1774131040885,-222.0,0.00015068,2]
[408692896,1774131040894,-273.0,0.00015068,2]
[408692897,1774131040903,-900.0,0.00015068,2]
[408692898,1774131040913,-166.66,0.00015088,2]
[408692899,1774131040923,-165.25954363,0.00015091,2]
[408692900,1774131040932,-2686.08,0.00015181,2]
[408692901,1774131040944,-200.0,0.00015187,2]
[408692902,1774131040954,-441.0,0.00015196,2]
[408692903,1774131040964,-666.0,0.00015198,2]
[408692904,1774131040974,-500.0,0.00015199,2]
[408692905,1774131040985,-9211.34798985,0.00015199,2]
[408692906,1774131040996,-500.0,0.00015199,2]
[408692907,1774131041005,-500.0,0.00015199,2]
[408692908,1774131041014,-500.0,0.00015199,2]
[408692909,1774131041023,-500.0,0.00015199,2]
[408692910,1774131041032,-516.47340423,0.00015199,2]
[408692911,1774131041041,-500.0,0.00015199,2]
[408692912,1774131041051,-250.0,0.00015199,2]
[408692913,1774131041060,-500.0,0.00015199,2]
[408692914,1774131041069,-250.0,0.00015199,2]
[408692915,1774131041079,-250.0,0.00015199,2]
[408692916,1774131041088,-500.0,0.00015199,2]
[408692917,1774131041097,-250.0,0.00015199,2]
[408692918,1774131041107,-250.0,0.00015199,2]
[408692919,1774131041116,-500.0,0.00015199,2]
[408692920,1774131041125,-250.0,0.00015199,2]
[408692921,1774131041134,-250.0,0.00015199,2]
[408692922,1774131041142,-500.0,0.00015199,2]
[408692923,1774131041151,-250.0,0.00015199,2]
[408692924,1774131041160,-250.0,0.00015199,2]
[408692925,1774131041169,-500.0,0.00015199,2]
[408692926,1774131041179,-250.0,0.00015199,2]
[408692927,1774131041188,-250.0,0.00015199,2]
[408692928,1774131041198,-500.0,0.00015199,2]
[408692929,1774131041207,-500.0,0.00015199,2]
[408692930,1774131041216,-250.0,0.00015199,2]
[408692931,1774131041225,-250.0,0.00015199,2]
[408692932,1774131041234,-500.0,0.00015199,2]
[408692933,1774131041244,-250.0,0.00015199,2]
[408692934,1774131041253,-250.0,0.00015199,2]
[408692935,1774131041262,-250.0,0.00015199,2]
[408692936,1774131041271,-335.32119913,0.00015199,2]
[408692937,1774131041281,-250.0,0.00015199,2]
[408692938,1774131041290,-250.0,0.00015199,2]
[408692939,1774131041299,-250.0,0.00015199,2]
[408692940,1774131041310,-250.0,0.00015199,2]
[408692941,1774131041321,-250.0,0.00015199,2]
[408692942,1774131041330,-250.0,0.00015199,2]
[408692943,1774131041339,-250.0,0.00015199,2]
[408692944,1774131041350,-250.0,0.00015199,2]
[408692945,1774131041359,-250.0,0.00015199,2]
[408692946,1774131041368,-250.0,0.00015199,2]
[408692947,1774131041379,-250.0,0.00015199,2]
[408692948,1774131041389,-151.0,0.00015199,2]
[408692949,1774131041399,-3236.98744912,0.00015207,2]
[408692950,1774131041408,-155.0,0.00015216,2]
[408692951,1774131041417,-10000.0,0.00015248,2]
[408692952,1774131041426,-9552.16786547,0.00015254,2]
[408692953,1774131041435,-151.0,0.00015254,2]
[408692954,1774131041445,-6145.48350849,0.00015309,2]
[408692955,1774131041455,-22472.33124532,0.00015334,2]
[408692956,1774131041464,-151.0,0.00015348,2]
[408692957,1774131041474,-151.0,0.00015348,2]
[408692958,1774131041483,-167.964343,0.00015348,2]
[408692959,1774131041493,-151.0,0.00015348,2]
[408692960,1774131041502,-151.0,0.00015348,2]
[408692961,1774131041511,-151.0,0.00015348,2]
[408692962,1774131041521,-151.0,0.00015348,2]
[408692963,1774131041530,-1027.012296,0.00015348,2]
[408692964,1774131041539,-1027.012296,0.00015348,2]
[408692965,1774131041548,-1027.012296,0.00015348,2]
[408692966,1774131041558,-1027.012296,0.00015348,2]
[408692967,1774131041567,-151.0,0.00015348,2]
[408692968,1774131041577,-157.949889,0.00015348,2]
[408692969,1774131041587,-151.0,0.00015348,2]
[408692970,1774131041596,-157.949889,0.00015348,2]
[408692971,1774131041606,-151.0,0.00015348,2]
[408692972,1774131041615,-157.949889,0.00015348,2]
[408692973,1774131041625,-157.949889,0.00015348,2]
[408692974,1774131041634,-241.55604225,0.00015348,2]
[408692975,1774131041777,-413.34924875,0.00015348,2]
[408692976,1774131041786,-151.0,0.00015348,2]
[408692977,1774131041795,-218.74341911,0.00015348,2]
[408692978,1774131041902,-436.16187189,0.00015348,2]
[408692979,1774131041911,-52.10904278,0.00015348,2]
[408692980,1774131041930,-602.79624822,0.00015348,2]
[408692981,1774131041940,-654.905291,0.00015348,2]
[408692982,1774131041949,-197.873476,0.00015348,2]
[408692983,1774131041959,-197.873476,0.00015348,2]
[408692984,1774131041969,-197.873476,0.00015348,2]
[408692985,1774131041978,-197.873476,0.00015348,2]
[408692986,1774131041988,-469.194984,0.00015348,2]
[408692987,1774131041999,-2106.797323,0.00015348,2]
[408692988,1774131042008,-469.194984,0.00015348,2]
[408692989,1774131042017,-2106.797323,0.00015348,2]
[408692990,1774131042026,-469.194984,0.00015348,2]
[408692991,1774131042036,-2106.797323,0.00015348,2]
[408692992,1774131042046,-469.194984,0.00015348,2]
[408692993,1774131042054,-2106.797323,0.00015348,2]
[408692994,1774131042064,-151.0,0.00015348,2]
[408692995,1774131042074,-30669.72750001,0.00015348,2]
[408692996,1774131042087,-57776.37966349,0.00015348,2]
[408692997,1774131042096,-39765.49717559,0.00015348,2]
[408692998,1774131042107,-4779.76509798,0.00015348,2]
[408692999,1774131042119,-412.40640083,0.00015348,2]
[408693000,1774131042134,-420.81679979,0.00015348,2]
[408693001,1774131042166,-151.0,0.00014421,2]
[408693002,1774131042176,-151.0,0.00014537,2]
[408693003,1774131042186,-315995.66922741,0.00015348,2]
[408693004,1774131042196,-76815.2860498,0.00015348,2]
[408693005,1774131042205,-1568.0,0.0001536,2]
[408693006,1774131042215,-2403.0,0.0001536,2]
[408693007,1774131042224,-2403.0,0.0001536,2]
[408693008,1774131042234,-161.0,0.0001536,2]
[408693009,1774131042243,-441.0,0.00015383,2]
[408693010,1774131042252,-441.0,0.00015451,2]
[408693011,1774131042262,-441.0,0.00015473,2]
[408693012,1774131042271,-210.72,0.00015487,2]
[408693013,1774131042281,-165.25954363,0.00015496,2]
[408693014,1774131042291,-350.0,0.00015496,2]
[408693015,1774131042300,-257.46,0.00015496,2]
[408693016,1774131042310,-3141.38,0.00015505,2]
[408693017,1774131042322,-4000.0,0.00015507,2]
[408693018,1774131042332,-197.873476,0.00015516,2]
[408693019,1774131042341,-197.873476,0.00015516,2]
[408693020,1774131042351,-197.873476,0.00015516,2]
[408693021,1774131042360,-197.873476,0.00015516,2]
[408693022,1774131042369,-2000.0,0.00015516,2]
[408693023,1774131042380,-2000.0,0.00015516,2]
[408693024,1774131042532,-432.15048804,0.00015516,2]
[408693025,1774131042543,-1176.98946913,0.00015516,2]
[408693026,1774131042552,-2000.0,0.00015516,2]
[408693027,1774131042561,-455.72571989,0.00015516,2]
[408693028,1774131042572,-682.21618208,0.00015516,2]
[408693029,1774131042581,-2000.0,0.00015516,2]
[408693030,1774131042591,-2000.0,0.00015516,2]
[408693031,1774131042601,-2000.0,0.00015516,2]
[408693032,1774131042610,-1498.67846085,0.00015516,2]
[408693033,1774131042620,-2000.0,0.00015516,2]
[408693034,1774131042630,-2000.0,0.00015516,2]
[408693035,1774131042640,-499.94158246,0.00015516,2]
[408693036,1774131042649,-2034.68838991,0.00015516,2]
[408693037,1774131042659,-2000.0,0.00015516,2]
[408693038,1774131042669,-1962.09760689,0.00015516,2]
[408693039,1774131042679,-2000.0,0.00015516,2]
[408693040,1774131042689,-1258.52124362,0.00015516,2]
[408693041,1774131042699,-1851.4077328,0.00015516,2]
[408693042,1774131042709,-2106.797323,0.00015553,2]
[408693043,1774131042719,-2106.797323,0.00015553,2]
[408693044,1774131042729,-2106.797323,0.00015553,2]
[408693045,1774131042739,-2106.797323,0.00015553,2]
[408693046,1774131042748,-151.0,0.00015553,2]
[408693048,1774131042757,-3236.98744912,0.00015553,2]
[408693050,1774131042767,-441.0,0.00015588,2]
[408693052,1774131042776,-4800.0,0.000156,5]
[408693054,1774131042786,-469.194984,0.000156,2]
[408693056,1774131042796,-469.194984,0.000156,2]
[408693058,1774131042806,-469.194984,0.000156,2]
[408693060,1774131042815,-469.194984,0.000156,2]
[408693061,1774131042825,-22472.33124532,0.00015617,2]
[408693062,1774131042835,-441.0,0.00015628,2]
[408693063,1774131042844,-654.905291,0.0001563,2]
[408693065,1774131042854,-151.0,0.0001563,2]
[408693067,1774131042863,-654.905291,0.0001563,2]
[408693068,1774131042872,-654.905291,0.0001563,2]
[408693069,1774131042882,-654.905291,0.0001563,2]
[408693070,1774131042893,-171.62946032,0.0001565,2]
[408693071,1774131042902,-1029.0,0.00015665,2]
[408693072,1774131042912,-150.0,0.00015667,2]
[408693073,1774131042922,-926.566,0.00015667,2]
[408693074,1774131042931,-1215.0,0.00015667,2]
[408693075,1774131042941,-443.2,0.00015668,2]
[408693076,1774131042950,-2403.0,0.0001568,2]
[408693077,1774131042959,-2403.0,0.0001568,2]
[408693078,1774131042968,-1181.93,0.000157,2]
[408693079,1774131042978,-516.09,0.000157,2]
[408693080,1774131042987,-900.0,0.000157,5]
[408693081,1774131042997,-150.0,0.00015722,2]
[408693082,1774131043007,-151.70602932,0.00015722,2]
[408693083,1774131043016,-500.0,0.00015722,2]
[408693084,1774131043026,-500.0,0.00015722,2]
[408693085,1774131043035,-500.0,0.00015722,2]
[408693086,1774131043045,-500.0,0.00015722,2]
[408693087,1774131043054,-500.0,0.00015722,2]
[408693088,1774131043064,-500.0,0.00015722,2]
[408693089,1774131043074,-500.0,0.00015722,2]
[408693090,1774131043084,-500.0,0.00015722,2]
[408693091,1774131043093,-500.0,0.00015722,2]
[408693092,1774131043103,-500.0,0.00015722,2]
[408693093,1774131043113,-500.0,0.00015722,2]
[408693094,1774131043123,-500.0,0.00015722,2]
[408693095,1774131043132,-286.7772583,0.00015722,2]
[408693096,1774131043142,-500.0,0.00015722,2]
[408693097,1774131043151,-500.0,0.00015722,2]
[408693098,1774131043160,-500.0,0.00015722,2]
[408693099,1774131043170,-500.0,0.00015722,2]
[408693100,1774131043179,-500.0,0.00015722,2]
[408693101,1774131043189,-500.0,0.00015722,2]
[408693102,1774131043198,-500.0,0.00015722,2]
[408693103,1774131043208,-500.0,0.00015722,2]
[408693104,1774131043219,-500.0,0.00015722,2]
[408693106,1774131043228,-500.0,0.00015722,2]
[408693107,1774131043237,-500.0,0.00015722,2]
[408693109,1774131043246,-500.0,0.00015722,2]
[408693111,1774131043256,-426.76631786,0.00015722,2]
[408693113,1774131043265,-500.0,0.00015722,2]
[408693115,1774131043274,-500.0,0.00015722,2]
[408693116,1774131043283,-500.0,0.00015722,2]
[408693119,1774131043292,-500.0,0.00015722,2]
[408693121,1774131043301,-512.84434544,0.00015722,2]
[408693123,1774131043312,-500.0,0.00015722,2]
[408693125,1774131043323,-475.40838882,0.00015722,2]
[408693126,1774131043332,-150.0,0.00015722,2]
[408693127,1774131043342,-500.0,0.00015722,2]
[408693128,1774131043351,-159.74456164,0.00015722,2]
[408693129,1774131043363,-500.0,0.00015722,2]
[408693130,1774131043372,-500.0,0.00015722,2]
[408693131,1774131043381,-500.0,0.00015722,2]
[408693132,1774131043391,-500.0,0.00015722,2]
[408693133,1774131043402,-195.65210854,0.00015722,2]
[408693134,1774131043413,-150.0,0.00015722,2]
[408693135,1774131043423,-150.0,0.00015722,2]
[408693136,1774131043434,-150.0,0.00015722,2]
[408693137,1774131043444,-155.82159694,0.00015722,2]
[408693138,1774131043454,-150.0,0.00015722,2]
[408693139,1774131043464,-151.46727953,0.00015722,2]
[408693140,1774131043474,-150.0,0.00015722,2]
[408693141,1774131043484,-151.24861645,0.00015722,2]
[408693142,1774131043494,-150.0,0.00015731,2]
[408693143,1774131043505,-200.0,0.00015735,2]
[408693144,1774131043515,-3759.0,0.00015742,2]
[408693145,1774131043524,-6007.0,0.00015742,2]
[408693146,1774131043534,-150.0,0.00015745,2]
[408693147,1774131043543,-433.0,0.00015745,2]
[408693148,1774131043553,-150.0,0.00015753,2]
[408693149,1774131043562,-1000.0,0.00015771,2]
[408693150,1774131043572,-441.0,0.00015774,2]
[408693151,1774131043582,-1790.5986287,0.00015779,2]
[408693152,1774131043591,-1000.0,0.00015799,2]
[408693153,1774131043601,-274.34,0.000158,2]
[408693154,1774131043610,-1375.21,0.000158,2]
[408693155,1774131043621,-900.0,0.000158,5]
[408693156,1774131043630,-1141.41873813,0.000158,2]
[408693157,1774131043640,-150.0,0.00015804,2]
[408693158,1774131043649,-264.37,0.00015807,2]
[408693159,1774131043659,-150.0,0.00015813,2]
[408693160,1774131043668,-1000.0,0.00015827,2]
[408693161,1774131043677,-159.94774,0.0001584,2]
[408693162,1774131043687,-159.94773,0.0001584,2]
[408693163,1774131043696,-159.94774,0.0001584,2]
[408693164,1774131043706,-1000.0,0.00015841,2]
[408693165,1774131043715,-1000.0,0.00015843,2]
[408693166,1774131043724,-164.51879837,0.00015844,2]
[408693167,1774131043733,-1000.0,0.00015855,2]
[408693168,1774131043743,-381.44,0.00015862,2]
[408693169,1774131043752,-350.0,0.00015862,2]
[408693170,1774131043761,-1059.95375415,0.0001587,2]
[408693171,1774131043770,-500.0,0.00015872,2]
[408693172,1774131043780,-2396.0,0.00015873,2]
[408693173,1774131043790,-1000.0,0.00015875,2]
[408693174,1774131043799,-2000.0,0.0001589,2]
[408693175,1774131043808,-1000.0,0.00015892,2]
[408693176,1774131043817,-4000.0,0.00015895,2]
[408693177,1774131043827,-660.36505561,0.000159,3]
[408693178,1774131043835,-3495.89945723,0.000159,3]
[408693179,1774131043844,-2550.72132336,0.000159,3]
[408693180,1774131043853,-2242.4784896,0.000159,3]
[408693181,1774131043862,-165.25954363,0.000159,2]
[408693182,1774131043871,-900.0,0.000159,5]
[408693183,1774131043881,-185.67890707,0.000159,2]
[408693184,1774131043890,-3236.98744912,0.000159,2]
[408693185,1774131043900,-658.93695718,0.000159,2]
[408693186,1774131043909,-22472.33124532,0.000159,2]
[408693187,1774131043918,-2100.15432017,0.000159,2]
[408693188,1774131043927,-1101.0,0.000159,5]
[408693189,1774131043936,-2000.0,0.000159,2]
[408693190,1774131043946,-2686.08,0.00015904,2]
[408693191,1774131043955,-1000.0,0.00015912,2]
[408693192,1774131043964,-1000.0,0.00015922,2]
[408693193,1774131043973,-1000.0,0.00015925,2]
[408693194,1774131043983,-1000.0,0.00015929,2]
[408693195,1774131043992,-1000.0,0.00015945,2]
[408693196,1774131044001,-1000.0,0.00015945,2]
[408693197,1774131044011,-1000.0,0.00015959,2]
[408693198,1774131044020,-325.0,0.00015966,2]
[408693199,1774131044029,-700.0,0.0001597,2]
[408693200,1774131044039,-700.0,0.0001597,2]
[408693201,1774131044047,-700.0,0.0001597,2]
[408693202,1774131044057,-1300.0,0.0001597,2]
[408693203,1774131044066,-474.808,0.00015973,2]
[408693204,1774131044075,-1000.0,0.00015975,2]
[408693205,1774131044085,-150.0,0.0001598,2]
[408693206,1774131044094,-350.0,0.00015994,2]
[408693207,1774131044104,-151.0,0.00015997,2]
[408693208,1774131044113,-1067.54895648,0.00015999,5]
[408693209,1774131044123,-2004.0,0.00016,5]
[408693210,1774131044132,-2955612.62871984,0.00016,2]
[408693211,1774131044146,-1560.46566908,0.00016,2]
[408693212,1774131044156,-2784.03994496,0.00016,2]
[408693213,1774131044264,-1067.6817414,0.00015091,2]
[408693214,1774131044274,-1617.35721752,0.00015091,2]
[408693215,1774131044284,-2466.0,0.00015742,2]
[408693216,1774131044294,-177250.02856525,0.00016,2]
[408693217,1774131044305,-20820.0646233,0.00016,2]
[408693218,1774131044321,-534.26111805,0.00016,2]
[408693219,1774131044331,-3092.96613891,0.00016,2]
[408693220,1774131045679,-1052.80623433,0.00016,2]
[408693221,1774131045839,-600.0,0.00016,2]
[408693231,1774131585121,159.01,6.325e-05,2]
[408693232,1774131721110,5035.94967356,0.00012571,2]
[408693233,1774131721131,10000.01,0.00012571,2]
[408693234,1774131721154,10000.01,0.00012571,2]
[408693235,1774131721365,10000.01,0.00012571,2]
[408693236,1774131721387,10000.01,0.00012571,2]
[408693237,1774131721408,10000.01,0.00012571,2]
[408693238,1774131721429,2028.90032644,0.00012571,2]
[408693239,1774131742746,5533.0,0.000111,5]
[408693240,1774131780703,2438.10967356,0.00012537,2]
[408693241,1774131780723,1497.45032644,0.00012537,2]
[408693242,1774131792758,1960.47,0.00011507,2]
[408693243,1774131872918,500.0,0.00012561,2]
[408693244,1774131931323,2000.0,0.00012476,2]
[408693245,1774131946076,-217.957864,0.0001287,2]
[408693246,1774132032049,500.0,0.000127,4]
[408693247,1774132037190,-1100.0,0.000128,4]
[408693248,1774132037213,-1700.0,0.000129,4]
[408693249,1774132037236,-924.790015,0.00012935,2]
[408693250,1774132037256,-300.30570177,0.00012991,2]
[408693251,1774132037278,-621.53224561,0.00013047,2]
[408693252,1774132037299,-621.53224561,0.00013086,2]
[408693253,1774132037318,-621.53224561,0.00013124,2]
[408693254,1774132037338,-358.18864893,0.00013124,2]
[408693255,1774132037373,-2924.1397966,0.00013135,2]
[408693256,1774132044823,5364.46,0.00012588,2]
[408693257,1774132135716,5000.01,9.5e-05,3]
[408693258,1774132135738,4635.55,9.5e-05,3]
[408693259,1774132135772,10000.01,9.5e-05,3]
[408693260,1774132135796,10000.01,9.5e-05,3]
[408693261,1774132135817,10000.01,9.5e-05,3]
[408693262,1774132135839,9089.00674716,9.5e-05,3]
[408693263,1774132175040,1500.0,0.00012547,2]
[408693265,1774132228666,166.66,0.00011921,2]
[408693266,1774132229071,166.66,0.00012172,2]
[408693267,1774132229263,166.66,0.00012423,2]
[408693268,1774132229449,166.66,0.00012674,2]
[408693274,1774132232068,-166.66,0.00012925,2]
[408693275,1774132232078,-107.059,0.00013123,2]
[408693276,1774132232089,-392.941,0.00013123,2]
[408693277,1774132232099,-218.78885345,0.00013123,2]
[408693278,1774132232109,-425.52014655,0.00013123,2]
[408693279,1774132232133,-74.47985345,0.00013123,2]
[408693280,1774132232142,-390.94905352,0.00013123,2]
[408693281,1774132232154,-500.0,0.00013123,2]
[408693282,1774132232165,-500.0,0.00013123,2]
[408693283,1774132232174,-3785.29313427,0.00013124,2]
[408693284,1774132232185,-1085.84254698,0.00013124,2]
[408693285,1774132232196,-68598.15409254,0.00013124,2]
[408693291,1774132232374,-834.3403945,0.00013124,2]
[408693292,1774132232534,-500.0,0.00013123,2]
[408693293,1774132232544,-521.89583768,0.00013123,2]
[408693294,1774132232554,-10953.77737033,0.00013124,2]
[408693295,1774132232566,-131441.23414703,0.00013124,2]
[408693296,1774132232578,-8202.4203,0.00013124,2]
[408693297,1774132232590,-765.5077029,0.00013124,2]
[408693298,1774132237945,-500.0,0.00013123,2]
[408693299,1774132237955,-500.0,0.00013123,2]
[408693300,1774132237966,-501.45667635,0.00013123,2]
[408693301,1774132237975,-500.0,0.00013123,2]
[408693302,1774132237985,-500.0,0.00013123,2]
[408693303,1774132237995,-500.0,0.00013123,2]
[408693304,1774132238004,-500.0,0.00013123,2]
[408693305,1774132238014,-500.0,0.00013123,2]
[408693306,1774132238024,-500.0,0.00013123,2]
[408693307,1774132238033,-500.0,0.00013123,2]
[408693308,1774132238043,-500.0,0.00013123,2]
[408693309,1774132238052,-500.0,0.00013123,2]
[408693310,1774132238061,-370.45763361,0.00013123,2]
[408693311,1774132238070,-500.0,0.00013123,2]
[408693312,1774132238080,-500.0,0.00013123,2]
[408693313,1774132238089,-500.0,0.00013123,2]
[408693314,1774132238099,-500.0,0.00013123,2]
[408693315,1774132238108,-450.95689052,0.00013123,2]
[408693316,1774132238118,-190.52321681,0.00013123,2]
[408693317,1774132238127,-500.0,0.00013123,2]
[408693318,1774132238136,-500.0,0.00013123,2]
[408693319,1774132238145,-500.0,0.00013123,2]
[408693320,1774132238155,-500.0,0.00013123,2]
[408693321,1774132238164,-500.0,0.00013123,2]
[408693322,1774132238173,-500.0,0.00013123,2]
[408693323,1774132238182,-500.0,0.00013123,2]
[408693325,1774132238191,-500.0,0.00013123,2]
[408693327,1774132238200,-500.0,0.00013123,2]
[408693329,1774132238210,-500.0,0.00013123,2]
[408693331,1774132238219,-500.0,0.00013123,2]
[408693333,1774132238228,-500.0,0.00013123,2]
[408693335,1774132238237,-500.0,0.00013123,2]
[408693337,1774132238246,-500.0,0.00013123,2]
[408693339,1774132238255,-500.0,0.00013123,2]
[408693341,1774132238264,-500.0,0.00013123,2]
[408693343,1774132238274,-500.0,0.00013123,2]
[408693345,1774132238283,-500.0,0.00013123,2]
[408693347,1774132238292,-500.0,0.00013123,2]
[408693349,1774132238301,-500.0,0.00013123,2]
[408693351,1774132238310,-500.0,0.00013123,2]
[408693353,1774132238319,-500.0,0.00013123,2]
[408693355,1774132238328,-500.0,0.00013123,2]
[408693357,1774132238338,-500.0,0.00013123,2]
[408693359,1774132238347,-500.0,0.00013123,2]
[408693362,1774132238357,-500.0,0.00013123,2]
[408693364,1774132238366,-500.0,0.00013123,2]
[408693366,1774132238375,-500.0,0.00013123,2]
[408693368,1774132238385,-500.0,0.00013123,2]
[408693370,1774132238394,-500.0,0.00013123,2]
[408693372,1774132238404,-375.85191527,0.00013123,2]
[408693374,1774132238415,-124.14808473,0.00013123,2]
[408693376,1774132238424,-500.0,0.00013123,2]
[408693378,1774132238433,-500.0,0.00013123,2]
[408693379,1774132238442,-500.0,0.00013123,2]
[408693380,1774132238451,-500.0,0.00013123,2]
[408693381,1774132238464,-500.0,0.00013123,2]
[408693382,1774132238474,-500.0,0.00013123,2]
[408693383,1774132238484,-115.80175527,0.00013123,2]
[408693384,1774132238496,-384.19824473,0.00013123,2]
[408693385,1774132238505,-500.0,0.00013123,2]
[408693386,1774132238515,-669.32175527,0.00013124,2]
[408693387,1774132238527,-1150886.01035618,0.00013124,2]
[408693388,1774132238537,-250.0,0.00013141,2]
[408693389,1774132238546,-250.0,0.00013163,2]
[408693390,1774132238556,-1200.0,0.0001317,2]
[408693391,1774132238565,-300.0,0.0001317,2]
[408693392,1774132238575,-166.66,0.00013176,2]
[408693393,1774132238586,-26499.14035228,0.00013214,2]
[408693394,1774132238596,-150.0,0.00013222,2]
[408693395,1774132238605,-6741.69937365,0.00013223,2]
[408693396,1774132238615,-500.0,0.00013223,2]
[408693397,1774132238625,-3813.44,0.00013224,2]
[408693398,1774132238634,-9999.99,0.00013224,2]
[408693399,1774132238644,-150.99,0.00013224,2]
[408693400,1774132238654,-999.99,0.00013224,2]
[408693401,1774132238666,-4999.99,0.00013224,2]
[408693402,1774132238676,-9999.99,0.00013224,2]
[408693403,1774132238686,-350.92,0.00013224,2]
[408693404,1774132238695,-430.89,0.00013224,2]
[408693405,1774132238705,-299.99,0.00013224,2]
[408693406,1774132238715,-150.99,0.00013224,2]
[408693407,1774132238724,-1611.02337537,0.00013224,2]
[408693408,1774132238735,-809.24686228,0.00013224,2]
[408693409,1774132238744,-487.3722,0.00013224,2]
[408693410,1774132238753,-159.84756314,0.00013273,2]
[408693411,1774132238762,-3070.71,0.00013313,2]
[408693412,1774132238771,-158.932,0.00013313,2]
[408693413,1774132238781,-890.93,0.00013316,2]
[408693414,1774132238790,-151.0,0.00013316,2]
[408693415,1774132238800,-151.0,0.00013316,2]
[408693416,1774132238809,-151.0,0.00013316,2]
[408693417,1774132238818,-500.0,0.00013316,2]
[408693418,1774132238827,-500.0,0.00013316,2]
[408693419,1774132238839,-151.0,0.00013316,2]
[408693420,1774132238848,-414.35315363,0.00013316,2]
[408693421,1774132238858,-151.0,0.00013316,2]
[408693422,1774132238869,-200.0,0.00013316,2]
[408693423,1774132238879,-151.0,0.00013316,2]
[408693424,1774132238889,-151.0,0.00013316,2]
[408693425,1774132238898,-151.0,0.00013316,2]
[408693426,1774132238908,-151.0,0.00013316,2]
[408693427,1774132238918,-151.0,0.00013316,2]